Cogmind - Beta 13 @@@ ROGUE MODE // 2024.04.04 @ 18:09:19 Player: Spuddz Result: Self-destructed Performance ------------- Evolutions (1) 500 Regions Visited (3) 600 Robots Destroyed (19) 95 Value Destroyed (469) 469 Prototype IDs (0) 0 Alien Tech Used (0) 0 Bonus (49) 49 TOTAL SCORE: 1713 Bonus ------- Follower Combat Kills 49 Cogmind --------- Core Integrity 327/400 Matter 300/300 Energy 250/250 System Corruption 0% Temperature Cool (15) Movement Treading (240) Ox1 Location -9/Materials Parts ------- > --- POWER (1) -------- Ion Engine > --- PROPULSION (3) --- Light Treads > --- UTILITY (3) ------ Large Storage Unit Light Armor Plating > --- WEAPON (2) ------- Light Assault Rifle Light Assault Rifle > --- INVENTORY (15) --- Ion Engine Ion Engine Heat Sink Improved Heat Sink Light Armor Plating Small Laser Light Assault Rifle Mining Laser Peak State ------------ > --- POWER ------------ Ion Engine > --- PROPULSION ------- Light Treads Light Treads > --- UTILITY ---------- Improved Heat Sink Small Storage Unit > --- WEAPON ----------- Small Laser Assault Rifle > --- INVENTORY -------- Ion Engine Ion Engine Ion Engine Light Ion Engine Light Nuclear Core Heat Sink Light Armor Plating Light Armor Plating [Rating: 10] Favorites ----------- Power Ion Engine Engine Ion Engine Propulsion Light Treads Treads Light Treads Utility Small Storage Unit Device Improved Heat Sink Storage Small Storage Unit Protection Light Armor Plating Weapon Assault Rifle Energy Gun Small Laser Ballistic Gun Assault Rifle Special Weapon Mining Laser Build | -11 -10 -10 -9 ------- Run | Yrd Mat Min Mat Slots Evolved 2 | . . . 2 Power . | . . . . Propulsion 1 | . . . 1 Utility 1 | . . . 1 Weapon . | . . . . Parts Attached 14 | 6 5 3 . Power 2 | 1 1 . . Engine 2 | 1 1 . . Core . | . . . . Reactor . | . . . . Propulsion 2 | 2 . . . Treads 2 | 2 . . . Leg . | . . . . Wheel . | . . . . Hover . | . . . . Flight . | . . . . Utility 4 | 1 2 1 . Device 1 | . 1 . . Storage 2 | 1 1 . . Processor . | . . . . Hackware . | . . . . Protection 1 | . . 1 . Artifact . | . . . . Weapon 6 | 2 2 2 . Energy Gun 1 | . 1 . . Energy Cannon . | . . . . Ballistic Gun 4 | 2 1 1 . Ballistic Cannon . | . . . . Launcher . | . . . . Special Weapon 1 | . . 1 . Impact Weapon . | . . . . Slashing Weapon . | . . . . Piercing Weapon . | . . . . Special Melee Weapon . | . . . . Unidentified Prototypes . | . . . . Parts Lost 2 | . 1 . 1 Power . | . . . . Propulsion 1 | . . . 1 Utility . | . . . . Weapon 1 | . 1 . . Highest Loss Streak 1 | . 1 . 1 To Critical Strikes . | . . . . Average Slot Usage (%) 91 | . 90 100 77 Engine 13 | . 14 14 11 Treads 27 | . 28 28 22 Device 3 | . 4 . . Storage 15 | . 16 16 11 Protection 3 | . . 12 11 Energy Gun 3 | . 5 . . Ballistic Gun 21 | . 20 26 22 Naked Turns . | . . . . Heaviest Build 32 | 14 32 32 30 Greatest Support 40 | 40 40 40 40 Greatest Overweight (x) . | . . . . Average Overweight (x) . | . . . . Largest Inventory Capacity 15 | 8 15 15 15 Average Capacity 10 | 7 9 15 15 Most Carried 9 | 3 8 9 8 Average Carried 5 | 1 4 8 8 Final Capacity 15 | 8 15 15 15 Final Carried 8 | 1 8 8 8 Class Distribution -------------------- 100% | Mutant Dominant Class ---------------- Mutant | -10/Materials Mutant | -10/Mines Mutant | -9/Materials Resources | -11 -10 -10 -9 ----------- Run | Yrd Mat Min Mat Matter Collected 594 | 204 316 52 22 Remotely . | . . . . Salvage Created 601 | . 485 69 47 Parts 43 | . 34 7 2 Haulers Intercepted . | . . . . Recyclers Shooed . | . . . . Parts Field Recycled . | . . . . Retrieved Matter . | . . . . Parts Self-Destructed . | . . . . Prevented . | . . . . Kills | -11 -10 -10 -9 ------- Run | Yrd Mat Min Mat Combat Hostiles Destroyed 15 | . 10 2 3 Guns 15 | . 10 2 3 Classes Destroyed 6 | . 4 2 . Worker 1 | . 1 . . Builder 1 | . 1 . . Tunneler 1 | . . 1 . Watcher 1 | . 1 . . Swarmer 4 | . . 1 3 Grunt 11 | . 10 1 . Best Kill Streak 5 | . 5 2 3 Combat Bots Only 4 | . 4 2 3 Max Kills in Single Turn 2 | . 1 1 2 Gunslinging 1 | . . . 1 Exploded . | . . . . Melee . | . . . . Uniques/NPCs Destroyed . | . . . . Combat | -11 -10 -10 -9 -------- Run | Yrd Mat Min Mat Hostile Shots Fired 104 | . 51 6 47 Missed 27 | . 11 3 13 Damage Taken 858 | . 472 31 355 Core 171 | . 98 . 73 Absorbed by Shields . | . . . . Core Remaining (%) 80 | 100 . 60 . Volleys Fired 64 | 1 44 6 13 Largest 2 | 2 2 2 2 Hottest 120 | 40 60 120 40 Shots Fired 120 | 2 80 12 26 Gun 119 | 2 80 11 26 Cannon . | . . . . Launcher . | . . . . Special 1 | . . 1 . Kinetic 113 | 2 74 11 26 Thermal 7 | . 6 1 . Explosive . | . . . . Electromagnetic . | . . . . Robot Hit Streak 17 | 2 17 4 5 Robot Miss Streak 6 | . 4 5 6 Penetration Max . | . . . . Secondary Targets 2 | . 1 . 1 Max Gunslinging Chain 1 | . 1 . 1 Shots Hit Robots 81 | 2 61 5 13 Core Hits 37 | 1 27 4 5 Critical Kills . | . . . . Critical Parts Destroyed . | . . . . Critical Strikes . | . . . . Melee Attacks . | . . . . Impact . | . . . . Slashing . | . . . . Piercing . | . . . . Sneak Attacks . | . . . . Combat Hostiles . | . . . . Follow-up Attacks . | . . . . Damage Inflicted 913 | 25 729 56 103 Guns 889 | 25 729 32 103 Cannons . | . . . . Explosions . | . . . . Melee . | . . . . Ramming . | . . . . Kinetic 836 | 25 676 32 103 Thermal 77 | . 53 24 . Explosive . | . . . . Electromagnetic . | . . . . Impact . | . . . . Slashing . | . . . . Piercing . | . . . . Highest Corruption . | . . . . Average Corruption . | . . . . Corruption Purged . | . . . . Corruption Blocked . | . . . . Overload Shots . | . . . . Overflow Damage . | . . . . Projectiles . | . . . . Explosions . | . . . . Melee . | . . . . Knockbacks . | . . . . Impact . | . . . . Kinetic . | . . . . Secondary . | . . . . Self-Inflicted Damage . | . . . . Shots . | . . . . Rammed . | . . . . Targets Rammed . | . . . . Kicked . | . . . . Crushed . | . . . . Highest Temperature 40 | . 20 40 18 Average Temperature 11 | . 6 10 17 Received Heat Transfer 360 | . 261 12 87 Siege Activations . | . . . . Robots Corrupted . | . . . . Combat Hostiles . | . . . . Parts Fried . | . . . . Impact Corruptions . | . . . . Robots Melted . | . . . . Combat Hostiles . | . . . . Parts Melted 1 | . 1 . . Heat Transferred 175 | . 125 50 . Parts Sabotaged . | . . . . Parts Stolen . | . . . . Parts Stripped . | . . . . Power Chain Reactions . | . . . . Alert | -11 -10 -10 -9 ------- Run | Yrd Mat Min Mat Peak Influence 283 | . 283 170 168 Initial 66 | . . 31 66 Average 104 | . 106 129 109 Maximum Alert Level 1 | . 1 . . Low Security (%) 88 | 100 82 100 100 Level 1 11 | . 17 . . Level 2 . | . . . . Level 3 . | . . . . Level 4 . | . . . . Level 5 . | . . . . High Security . | . . . . Max Security . | . . . . Squads Dispatched 2 | . 1 . 1 Investigation 1 | . 1 . . Extermination . | . . . . Reinforcement 1 | . . . 1 Assault . | . . . . Garrison . | . . . . Intercept . | . . . . Searches Triggered . | . . . . Construction Impeded . | . . . . Haulers Reinforced . | . . . . Active Scanning Responses . | . . . . Cargo Convoy Interrupts . | . . . . Stealth | -11 -10 -10 -9 --------- Run | Yrd Mat Min Mat Distress Signals 1 | . 1 . . Communications Jammed . | . . . . Distress Signals . | . . . . Times Spotted 26 | . 14 4 8 Peak Tracking Total 4 | . 3 2 4 Tactical Retreats 1 | . . 1 . Traps | -11 -10 -10 -9 ------- Run | Yrd Mat Min Mat Traps Triggered 1 | . 1 . . Indirectly . | . . . . Trap Hack Attempts . | . . . . Triggered . | . . . . Disarmed . | . . . . Reprogrammed . | . . . . Reused . | . . . . Traps Extracted . | . . . . Installed . | . . . . Triggered . | . . . . Machines | -11 -10 -10 -9 ---------- Run | Yrd Mat Min Mat Machines Disabled . | . . . . Max in Single Turn . | . . . . Machines Repaired . | . . . . Machines Dismantled . | . . . . Machines Sabotaged . | . . . . Overloaded Fab Kills . | . . . . Hacking | -11 -10 -10 -9 --------- Run | Yrd Mat Min Mat Machines Accessed 1 | . . . 1 Terminals 1 | . . . 1 Fabricators . | . . . . Repair Stations . | . . . . Recycling Units . | . . . . Scanalyzers . | . . . . Garrison Access . | . . . . Total Hacks 4 | . . . 4 Successful 2 | . . . 2 Failed 1 | . . . 1 Catastrophic . | . . . . Database Lockouts 1 | . . . 1 Manual . | . . . . Terminals 4 | . . . 4 Fabricators . | . . . . Repair Stations . | . . . . Recycling Units . | . . . . Scanalyzers . | . . . . Garrison Access . | . . . . Terminal Hacks 2 | . . . 2 Record 2 | . . . 2 Fabricator Hacks . | . . . . Repair Station Hacks . | . . . . Recycling Unit Hacks . | . . . . Scanalyzer . | . . . . Garrison Access Hacks . | . . . . Unauthorized Hacks . | . . . . Terminals . | . . . . Fabricators . | . . . . Repair Stations . | . . . . Recycling Units . | . . . . Scanalyzers . | . . . . Garrison Access . | . . . . Data Cores Recovered . | . . . . Used . | . . . . Hacking Detections . | . . . . Full Trace Events . | . . . . Feedback Events . | . . . . Feedback Blocked . | . . . . Robot Schematics Acquired . | . . . . Robots Built . | . . . . Authchips . | . . . . Time . | . . . . Total Robot Build Rating . | . . . . Part Schematics Acquired . | . . . . Parts Built . | . . . . Authchips . | . . . . Time . | . . . . Total Part Build Rating . | . . . . Parts Repaired . | . . . . Time . | . . . . Parts Recycled . | . . . . Recycled Matter . | . . . . Retrieved Matter . | . . . . Retrieved Components . | . . . . Parts Scanalyzed . | . . . . Part Schematics Acquired . | . . . . Parts Damaged . | . . . . Bothacking | -11 -10 -10 -9 ------------ Run | Yrd Mat Min Mat Used RIF Installer . | . . . . Robots Hacked . | . . . . Non-combat . | . . . . Combat . | . . . . Robot Hacks Applied . | . . . . Relay Couplers Released . | . . . . Fabnet Peak Effective % . | . . . . Robots Rewired . | . . . . Allies Hacked . | . . . . Hacks Repelled . | . . . . Allies | -11 -10 -10 -9 -------- Run | Yrd Mat Min Mat Total Allies 1 | . . 1 . Largest Group 1 | . . 1 . Highest-Rated Group 31 | . . 31 . Highest-Rated Ally 31 | . . 31 . Total Orders . | . . . . Ally Attacks 12 | . . 12 . Total Damage 207 | . . 207 . Kills 3 | . . 3 . Allies Corrupted . | . . . . Allies Melted . | . . . . Intel | -11 -10 -10 -9 ------- Run | Yrd Mat Min Mat Robot Analysis Total . | . . . . Derelict Logs Recovered 1 | . . 1 . Drone Launches . | . . . . Drone Recoveries . | . . . . Exploration | -11 -10 -10 -9 ------------- Run | Yrd Mat Min Mat Turns Passed 960 | 70 593 212 85 Spaces Moved 470 | 38 282 118 32 Core 5 | 5 . . . Treads 465 | 33 282 118 32 Legs . | . . . . Wheels . | . . . . Hover . | . . . . Flight . | . . . . Fastest Speed 50 | 50 160 160 160 Average Speed 158 | 145 160 160 160 Slowest Speed 160 | 160 160 160 160 Overloaded Moves . | . . . . Propulsion Burnouts . | . . . . Robots Hopped . | . . . . Cave-ins Triggered . | . . . . Exploration Rate (%) 20 | 4 42 29 6 Regions Visited 3 Branch Regions 1 Pre-discovered Areas 1 | . . 1 . Known Exits Taken . | . . . . Unknown Exits Taken 3 | 1 1 1 . Scrap Searched 2 | . . 2 . Spaces Dug . | . . . . Terrain Destroyed . | . . . . Melee . | . . . . Projectile . | . . . . AOE . | . . . . Terrain Rammed . | . . . . Walls Destroyed . | . . . . Machines Disabled . | . . . . Actions | -11 -10 -10 -9 --------- Run | Yrd Mat Min Mat Total 572 | 51 346 130 45 Wait . | . . . . Move 467 | 37 281 117 32 Hop . | . . . . Pick Up 21 | 7 12 2 . Fast Attach . | . . . . Attach 9 | 6 2 1 . Detach . | . . . . Swap 5 | . 3 2 . Drop 6 | . 4 2 . Fire 64 | 1 44 6 13 Melee . | . . . . Ram . | . . . . Kick . | . . . . Crush . | . . . . Escape Stasis . | . . . . Rewire . | . . . . Trap . | . . . . Miscellaneous . | . . . . Route ------- -11/Scrapyard -10/Materials -10/Mines -9/Materials History --------- Turn | Location | Event 22 | -11/Scrapyard | Discovered new exit (range 16) 71 | -11/Scrapyard | Entered Materials 300 | -10/Materials | Build established: Mutant 390 | -10/Materials | Discovered new exit (range 7) 664 | -10/Materials | Entered Mines 667 | -10/Mines | Received a Mining Laser from a helpful Derelict 819 | -10/Mines | Learned location of Zion (-7) 820 | -10/Mines | Discovered new exit (range 4) 876 | -10/Mines | Entered Materials 876 | -9/Materials | Evolved 2 slots: Propulsion x1, Utility x1 878 | -9/Materials | Central database locked down 961 | -9/Materials | Self-destructed Last Messages --------------- ALERT: Central database lockdown, local access denied. Connecting with Scanalyzer... S-10 Pest destroyed. Switching to secondary target: S-10 Pest. S-10 Pest destroyed. Acquired 13 matter. Acquired 5 matter. O-16 Technician: "IFF HANDSHAKE FAILED. SECURING TERMINAL." Acquired 2 matter. O-16 Technician uses terminal to summon reinforcements. ALERT: Hostiles spotted, dispatching reinforcements to Terminal M008. O-16 Technician locks terminal. Acquired 2 matter. O-16 Technician destroyed. Lgt. Treads destroyed. K-01 Serf collects debris. Map ----- +----------------------------------------------------+ | | | | | | | | | | | | | | | | | | | | | | | | | | | | | | | | | ??????????????????###########????????????????????? | | ??????????????????# T #????????????????????? | | ??????????????????# #????????????????????? | | ??????????????????# #????????????????????? | | ???????###????????# #????????????????????? | | ?????###T##############+###############??????????? | | ?????# [%% ??????????? | | ?????# = #??????????????? | | ?????# #??????????????? | | ?????######+############ @ #####+##??????????????? | | ??????# "" #??????# #?????????????????????? | | ??????# ""S #??????# #?????????????????????? | | ??????# "" """ #??????#%= #?????????????????????? | | ??????# """ #??????#* #?????????????????????? | | ??????# """ #??????# g#?????????????????????? | | ??????# #??????# Y #?????????????????????? | | ??????# #?????? g ?????????????????????? | | ??????# #?????? k!?????????????????????? | | ??????###########?????? w ????????????????????? | | ??????????????????????? ????????????????????? | | ??????????????????????# ##???????????????????? | | ??????????????????????#######????????????????????? | | ?????????????????????????????????????????????????? | | ?????????????????????????????????????????????????? | | ?????????????????????????????????????????????????? | | ?????????????????????????????????????????????????? | | ?????????????????????????????????????????????????? | | ?????????????????????????????????????????????????? | | ?????????????????????????????????????????????????? | | ?????????????????????????????????????????????????? | | ?????????????????????????????????????????????????? | | ?????????????????????????????????????????????????? | | ?????????????????????????????????????????????????? | | ?????????????????????????????????????????????????? | +----------------------------------------------------+ Best States ------------- Heat Dissipation 39 Energy Generation 10 Energy Capacity 250 Matter Stores 300 Matter Capacity 300 Sight Range 16 Terrain Scan Density 10 Armor Coverage 150 Evasion (%) 40 Recoil Reduction 2 Item Schematics ----------------- None Robot Schematics ------------------ None Fabricated ------------ Nothing Alien Tech Used ----------------- None Achievements -------------- None Challenges ------------ None Game ------ Seed WarpRainbowNanovents Manual? 0 Play Time 00:13:35 Cumulative 3.3 hours Start 2024.04.04 @ 17:56:49 End 2024.04.04 @ 18:09:19 Sessions 1 Manual Loads 0 Difficulty Rogue Special Mode None Game No. 5 Rogue 5 Adventurer 0 Explorer 0 Win Type - Total 0 Types 0/0/0/0/0/0/0/0/0 Lore% 2 Gallery% 8 Achievement% 10 Wizard Run 0 Options --------- Layout 1 ASCII 0 Keyboard 0 Movement Mouse Keybinds 0 Fullscreen 2 Font 32/Terminus Map View 50x35 Zoom Use 0% Tactical HUD 0 Map Filters NONE Filters NONE Steam 1 RUN: d76a5b2d-5b65-42be-96a8-dc44bcafe8c2